fUST/lending_fUST_20240211
["ID","MTS","AMOUNT","RATE_DAILY","PERIOD"]
[313684489,1707581210754,980.85999752,0.00017547,2]
[313684490,1707581226329,-154.8915759,0.0001877,2]
[313684491,1707581226349,-265.99088334,0.00018771,2]
[313684498,1707581254100,-154.8915759,0.00018768,2]
[313684499,1707581254119,-294.68032616,0.00018769,2]
[313684500,1707581254139,-1587.53818011,0.00018769,2]
[313684501,1707581254159,-2101.82444739,0.00018769,2]
[313684502,1707581254179,-2606.4717958,0.0001877,2]
[313684503,1707581254198,-4940.59301486,0.0001877,2]
[313684568,1707581350117,-2928.65680444,0.00017766,2]
[313684570,1707581358122,-21908.14795512,0.00017766,2]
[313684577,1707581365095,-10840.66223834,0.00017765,2]
[313684593,1707581401651,2971.6354998,0.00017104,2]
[313684661,1707581432577,-323.90420148,0.00017761,2]
[313684663,1707581432587,-167.58112914,0.00017761,2]
[313684665,1707581432597,-500.0,0.00017762,2]
[313684667,1707581432607,-1587.53818011,0.00017762,2]
[313684669,1707581432617,-185.07172042,0.00017762,2]
[313684672,1707581432627,-454.5514813,0.00017763,2]
[313684675,1707581432636,-8304.74484547,0.00017765,2]
[313684678,1707581432645,-49676.01192678,0.00017765,2]
[313684684,1707581436249,21047.50450268,0.00017104,2]
[313684685,1707581436277,10000.0,0.00017104,2]
[313684695,1707581438694,-1291.61,0.00017104,2]
[313684696,1707581438805,-146593.16215104,0.00017104,2]
[313684697,1707581438820,-106471.40661064,0.00017104,2]
[313684698,1707581438830,-454.5514813,0.0001776,2]
[313684699,1707581438839,-34290.29364719,0.00017765,2]
[313684700,1707581438849,-63.19524044,0.00017766,2]
[313684701,1707581438857,-261.62909258,0.00017766,2]
[313684702,1707581438867,-344.20049745,0.00017766,2]
[313684703,1707581438876,-200.0,0.00018119,2]
[313684704,1707581438885,-200.0,0.00018119,2]
[313684705,1707581438895,-2468.3658084,0.00018766,2]
[313684706,1707581438903,-20626.75980196,0.00018766,2]
[313684707,1707581438913,-2607.2690256,0.00018767,2]
[313684709,1707581438922,-1513.50493742,0.00018767,2]
[313684711,1707581438931,-378.65981636,0.00018768,2]
[313684712,1707581438941,-304.309765,0.00018779,2]
[313684714,1707581438952,-475.36494467,0.000189,2]
[313684715,1707581438961,-151.0,0.00019323,2]
[313684716,1707581438970,-200.71258483,0.00019495,2]
[313684717,1707581438980,-249.25233978,0.00019495,2]
[313684718,1707581438990,-167.19218389,0.00019496,2]
[313684719,1707581439000,-1745.88499104,0.00019496,2]
[313684720,1707581439009,-156.04899939,0.00019496,2]
[313684721,1707581439018,-261.08056277,0.00019496,2]
[313684722,1707581439029,-15416.62669184,0.00019497,2]
[313684723,1707581439039,-161.52708074,0.00019497,2]
[313684724,1707581439048,-261.88794378,0.00019497,2]
[313684725,1707581439057,-19922.00560303,0.00019497,2]
[313684726,1707581439066,-193.86521735,0.00019497,2]
[313684727,1707581439076,-214.08706983,0.00019498,2]
[313684728,1707581439085,-1434.09189254,0.00019498,2]
[313684729,1707581439095,-4180.75544824,0.00019498,2]
[313684730,1707581439104,-155.07753877,0.00019498,2]
[313684731,1707581439113,-1114.9970642,0.000195,2]
[313684732,1707581439122,-313.06031524,0.00019776,2]
[313684733,1707581439131,-223.29993681,0.00019776,2]
[313684734,1707581439140,-154.90705577,0.00019776,2]
[313684735,1707581439149,-154.90705577,0.00019776,2]
[313684736,1707581439158,-820.31578282,0.00019777,2]
[313684737,1707581439168,-642.7190219,0.00019778,2]
[313684738,1707581439177,-20959.18700142,0.00019779,2]
[313684739,1707581439186,-151.0,0.00019877,2]
[313684740,1707581439196,-200.0,0.00019931,2]
[313684741,1707581439205,-360.0,0.00019931,2]
[313684742,1707581439215,-274.95719598,0.0002,2]
[313684743,1707581439224,-324.18448095,0.0002,2]
[313684744,1707581439233,-56621.70829762,0.0002,2]
[313684745,1707581439242,-259.80436975,0.0002,2]
[313684746,1707581439251,-152.1487591,0.0002,2]
[313684747,1707581439261,-151.0,0.00020432,2]
[313684748,1707581439270,-245755.95623634,0.00020601,2]
[313684749,1707581439279,-24082.55943465,0.00020701,2]
[313684765,1707581441897,-25917.44056535,0.00020701,2]
[313684766,1707581441906,-1925.35214514,0.00020814,2]
[313684767,1707581441915,-5000.0,0.00020814,2]
[313684768,1707581441925,-21647.57862715,0.00020814,2]
[313684769,1707581441936,-1979.42258337,0.00020814,2]
[313684770,1707581441949,-18216.48531452,0.00020814,2]
[313684771,1707581441960,-5000.0,0.00020814,2]
[313684772,1707581441969,-505.05067017,0.00020814,2]
[313684773,1707581441978,-3062.48700866,0.00020814,2]
[313684774,1707581441988,-350.36929023,0.00020822,2]
[313684775,1707581441998,-500.0,0.00020822,2]
[313684776,1707581442006,-240.08452191,0.00020822,2]
[313684777,1707581442015,-201.1662926,0.00020822,2]
[313684778,1707581442025,-500.0,0.00020822,2]
[313684779,1707581442034,-243.90030943,0.00020822,2]
[313684780,1707581442043,-500.0,0.00020822,2]
[313684781,1707581442052,-500.0,0.00020822,2]
[313684782,1707581442061,-500.0,0.00020822,2]
[313684783,1707581442070,-500.0,0.00020822,2]
[313684784,1707581442081,-500.0,0.00020822,2]
[313684785,1707581442090,-17.42224255,0.00020822,2]
[313684786,1707581442102,-482.57775745,0.00020822,2]
[313684787,1707581442111,-500.0,0.00020822,2]
[313684788,1707581442121,-500.0,0.00020822,2]
[313684789,1707581442130,-525.29612938,0.00020822,2]
[313684790,1707581442140,-156.84198439,0.00020822,2]
[313684791,1707581442149,-500.0,0.00020822,2]
[313684792,1707581442158,-500.0,0.00020822,2]
[313684793,1707581442168,-500.0,0.00020822,2]
[313684794,1707581442177,-500.0,0.00020822,2]
[313684795,1707581442187,-500.0,0.00020822,2]
[313684796,1707581442196,-500.0,0.00020822,2]
[313684797,1707581442205,-500.0,0.00020822,2]
[313684798,1707581442214,-500.0,0.00020822,2]
[313684799,1707581442223,-500.0,0.00020822,2]
[313684800,1707581442232,-500.0,0.00020822,2]
[313684801,1707581442242,-500.0,0.00020822,2]
[313684802,1707581442251,-500.0,0.00020822,2]
[313684803,1707581442261,-500.0,0.00020822,2]
[313684804,1707581442270,-500.0,0.00020822,2]
[313684805,1707581442278,-500.0,0.00020822,2]
[313684806,1707581442287,-500.0,0.00020822,2]
[313684807,1707581442296,-500.0,0.00020822,2]
[313684808,1707581442305,-242.2270704,0.00020822,2]
[313684809,1707581442314,-500.0,0.00020822,2]
[313684810,1707581442323,-500.0,0.00020822,2]
[313684811,1707581442333,-500.0,0.00020822,2]
[313684812,1707581442342,-500.0,0.00020822,2]
[313684813,1707581442351,-427.80392892,0.00020822,2]
[313684814,1707581442361,-500.0,0.00020822,2]
[313684815,1707581442370,-495.66766419,0.00020822,2]
[313684816,1707581442379,-500.0,0.00020822,2]
[313684817,1707581442388,-500.0,0.00020822,2]
[313684818,1707581442398,-500.0,0.00020822,2]
[313684819,1707581442407,-418.13129624,0.00020822,2]
[313684820,1707581442416,-500.0,0.00020822,2]
[313684821,1707581442426,-500.0,0.00020822,2]
[313684822,1707581442435,-500.0,0.00020822,2]
[313684823,1707581442444,-500.0,0.00020822,2]
[313684824,1707581442453,-500.0,0.00020822,2]
[313684825,1707581442462,-540.46013315,0.00020822,2]
[313684826,1707581442471,-500.0,0.00020822,2]
[313684827,1707581442480,-500.0,0.00020822,2]
[313684828,1707581442489,-500.0,0.00020822,2]
[313684829,1707581442498,-500.0,0.00020822,2]
[313684830,1707581442507,-154.8915759,0.00020914,2]
[313684831,1707581442516,-151.0,0.00020986,2]
[313684832,1707581442524,-2941.95734593,0.00021,2]
[313684833,1707581442534,-151.0,0.0002154,2]
[313684834,1707581442543,-537.77034027,0.00021817,2]
[313684835,1707581442552,-475.86,0.00021904,2]
[313684836,1707581442562,-1719.68153383,0.00021914,2]
[313684837,1707581442820,-1401.49993163,0.00021914,2]
[313684848,1707581443625,-14363.02540491,0.00021914,2]
[313684849,1707581443636,-4591.87279475,0.00021914,2]
[313684850,1707581443677,-1479.61017428,0.00021914,2]
[313684851,1707581443689,-5018.61224055,0.00021914,2]
[313684882,1707581518306,173.23584691,0.00017002,2]
[313684883,1707581520675,185.07172042,0.000171,2]
[313684885,1707581538714,185.07172042,0.000171,2]
[313684886,1707581539269,24456.62071225,0.000171,2]
[313684887,1707581539300,20000.0,0.000171,2]
[313684889,1707581552782,5000.0,0.00016587,2]
[313684892,1707581569352,763.88031577,0.00015388,2]
[313684894,1707581589329,714.80250321,0.00015387,2]
[313684895,1707581598852,261.62909258,0.00015388,2]
[313684896,1707581606231,344.20049745,0.00015388,2]
[313684898,1707581615571,261.62909258,0.00015388,2]
[313684899,1707581622226,223.40007755,0.00015388,2]
[313684900,1707581630837,261.62909258,0.00015388,2]
[313684901,1707581640803,1392.662982,0.000161,2]
[313684904,1707581650845,261.62909258,0.00015388,2]
[313684907,1707581670867,261.62909258,0.00015388,2]
[313684908,1707581686850,217.15594021,0.00015388,2]
[313684918,1707581772499,2719.768289,0.00029,30]
[313684924,1707581861040,24900.0,0.00016093,2]
[313684928,1707581936328,65135.75222091,0.00016093,2]
[313684929,1707581936353,220267.93104345,0.00016093,2]
[313684930,1707581946886,202.75560455,0.00017002,2]
[313684931,1707581950321,285403.68326436,0.00016093,2]
[313684934,1707581972327,94047.29781031,0.00016093,2]
[313684938,1707582004881,567.6824724,0.00016095,2]
[313684944,1707582087812,3649.97392191,0.00016095,2]
[313684947,1707582157844,841.689557,0.00016053,2]
[313684950,1707582215500,1164.8603459,0.00016189,2]
[313684951,1707582230257,165.33464057,0.00016943,2]
[313684952,1707582233845,10195.09100578,0.00016053,2]
[313684953,1707582246364,28168.05386216,0.00016053,2]
[313684954,1707582246979,1100.51291326,0.00016053,2]
[313684961,1707582260283,686.58681851,0.00016053,2]
[313684962,1707582262970,1096.9927924,0.00016053,2]
[313684964,1707582280147,684.23510419,0.00016053,2]
[313684965,1707582284956,312.36760866,0.00016053,2]
[313684966,1707582302147,684.23510419,0.00016053,2]
[313684967,1707582309392,155.32157113,0.00016053,2]
[313684968,1707582316367,24345.97984738,0.00016053,2]
[313684969,1707582322150,209.40528855,0.00016053,2]
[313684970,1707582329381,230.00771759,0.00016053,2]
[313684972,1707582372516,162.20448364,0.00016933,2]
[313684974,1707582381383,24900.0,0.00016029,2]
[313684977,1707582426131,-185.07172042,0.00017021,2]
[313684978,1707582426152,-1195.96426404,0.00017021,2]
[313684986,1707582529440,154.8915759,0.00017009,2]
[313684987,1707582532380,2607.2690256,0.00017009,2]
[313684988,1707582537971,678.94138998,0.00017009,2]
[313684989,1707582540789,154.8915759,0.00017009,2]
[313684993,1707582547082,-261.98617996,0.0001701,2]
[313684994,1707582547102,-1434.56222192,0.0001701,2]
[313684995,1707582547122,-323.90420148,0.0001701,2]
[313684996,1707582547143,-2607.2690256,0.0001701,2]
[313684997,1707582547166,-159.38167513,0.00017011,2]
[313684998,1707582547188,-500.0,0.00017011,2]
[313684999,1707582547209,-157.81633358,0.00017011,2]
[313685000,1707582547230,-154.8915759,0.00017012,2]
[313685001,1707582547250,-154.8915759,0.00017012,2]
[313685002,1707582547269,-20940.57997335,0.00017012,2]
[313685003,1707582547288,-1018.7537034,0.00017013,2]
[313685004,1707582547311,-161.5844476,0.00017013,2]
[313685005,1707582547331,-14270.77863768,0.00017013,2]
[313685006,1707582550942,261.17070193,0.00017009,2]
[313685007,1707582551160,2823.5844193,0.00017009,2]
[313685008,1707582552021,19929.20121893,0.00017009,2]
[313685009,1707582552842,2107.57320617,0.00017009,2]
[313685010,1707582554171,-5878.39982203,0.00017009,2]
[313685011,1707582554193,-653.76762007,0.00017012,2]
[313685012,1707582554213,-4694.12006626,0.00017013,2]
[313685013,1707582554232,-454.5514813,0.00017014,2]
[313685014,1707582554252,-19145.40708381,0.00017016,2]
[313685015,1707582554271,-1450.54250362,0.00017017,2]
[313685016,1707582554291,-13353.27507177,0.00017021,2]
[313685017,1707582554313,-906.35745615,0.00017027,2]
[313685018,1707582554333,-1181.19543372,0.00017031,2]
[313685019,1707582554353,-199.84055074,0.00017034,2]
[313685020,1707582554372,-158.37942834,0.0001704,2]
[313685021,1707582554398,-155.05116031,0.00017055,2]
[313685022,1707582554418,-220.05024398,0.0001708,2]
[313685023,1707582554437,-2212.75909754,0.00017089,2]
[313685024,1707582554456,-155.11478494,0.00017093,2]
[313685025,1707582554477,-155.40765533,0.00017093,2]
[313685026,1707582554495,-181.54986875,0.00017093,2]
[313685027,1707582554514,-1858.63739895,0.000171,2]
[313685028,1707582554544,-40795.46049734,0.00017101,2]
[313685029,1707582554567,-1745.88499104,0.00017102,2]
[313685030,1707582554588,-313.06031524,0.00017102,2]
[313685031,1707582554608,-2607.68946512,0.00017102,2]
[313685032,1707582554628,-223.29993681,0.00017102,2]
[313685033,1707582554648,-642.7190219,0.00017102,2]
[313685034,1707582554668,-4180.75544824,0.00017102,2]
[313685035,1707582554688,-167.19218389,0.00017102,2]
[313685036,1707582554708,-200.71258483,0.00017102,2]
[313685037,1707582554728,-378.65981636,0.00017102,2]
[313685038,1707582554749,-20959.18700142,0.00017103,2]
[313685039,1707582554769,-820.31578282,0.00017103,2]
[313685040,1707582554788,-214.08706983,0.00017103,2]
[313685041,1707582554808,-111.28317812,0.00017103,2]
[313685042,1707582555120,-43.62387765,0.00017103,2]
[313685043,1707582555140,-249.25233978,0.00017103,2]
[313685044,1707582555201,185.07172042,0.00017012,2]
[313685045,1707582559506,1756.24249853,0.0001701,2]
[313685047,1707582561094,-5764.06504359,0.0001701,2]
[313685048,1707582566099,-4106.45707629,0.0001701,2]
[313685049,1707582568141,-1653.5673626,0.0001701,2]
[313685056,1707582617128,9110.7168074,0.0001691,2]
[313685100,1707582637901,-6902.93464755,0.0001691,2]
[313685102,1707582637910,-7660.24799234,0.0001701,2]
[313685104,1707582637920,-193.79630004,0.00017376,2]
[313685106,1707582637929,-1433.62156316,0.00017377,2]
[313685108,1707582637939,-154.8915759,0.00017648,2]
[313685110,1707582637948,-323.90420148,0.00017649,2]
[313685112,1707582637957,-162.20448363,0.0001765,2]
[313685114,1707582637966,-980.85999752,0.00017906,2]
[313685116,1707582637975,-571.674754,0.00017998,2]
[313685117,1707582637985,-162.20448363,0.00018367,2]
[313685119,1707582637994,-261.17070193,0.00018898,2]
[313685121,1707582638003,-154.8915759,0.00018899,2]
[313685123,1707582638012,-185.07172042,0.00018899,2]
[313685125,1707582638022,-1018.7537034,0.00018899,2]
[313685127,1707582638031,-161.5844476,0.00018899,2]
[313685129,1707582638041,-1050.80427446,0.000189,2]
[313685131,1707582638050,-162.20448363,0.00019083,2]
[313685133,1707582638059,-166.488178,0.00019178,2]
[313685135,1707582638069,-1114.9970642,0.000195,2]
[313685137,1707582638078,-5210.78,0.00019687,3]
[313685140,1707582638088,-4342.32,0.00019687,3]
[313685141,1707582638097,-19929.20121893,0.00019696,2]
[313685144,1707582638106,-18964.89870394,0.00019696,2]
[313685146,1707582638115,-17095.30921603,0.00019697,2]
[313685148,1707582638124,-162.20448363,0.000198,2]
[313685149,1707582638134,-6252.93,0.00019888,3]
[313685152,1707582638143,-500.0,0.00019897,2]
[313685154,1707582638153,-35219.20839597,0.00019897,2]
[313685156,1707582638162,-7980.56482282,0.00019898,2]
[313685158,1707582638171,-1625.68585848,0.00019898,2]
[313685159,1707582638180,-2605.674566,0.00019899,2]
[313685161,1707582638189,-261.7897076,0.00019899,2]
[313685162,1707582638198,-155.1193995,0.00019899,2]
[313685163,1707582638208,-245755.95623634,0.000199,2]
[313685165,1707582638216,-483.99330618,0.000199,2]
[313685166,1707582638226,-324.18448095,0.0002,2]
[313685167,1707582638237,-259.80436975,0.0002,2]
[313685168,1707582638246,-56621.70829762,0.0002,2]
[313685169,1707582638256,-274.95719598,0.0002,2]
[313685170,1707582638265,-1202.33881507,0.0002,2]
[313685171,1707582638275,-154.90705577,0.0002,2]
[313685172,1707582638284,-163.98628434,0.0002,2]
[313685173,1707582638437,-154.90705577,0.0002,2]
[313685174,1707582638454,-152.1487591,0.0002,2]
[313685175,1707582638464,-200.0,0.00020297,2]
[313685176,1707582638473,-200.0,0.00020297,2]
[313685177,1707582638483,-151.0,0.00020453,2]
[313685178,1707582638492,-17170.63700114,0.00020701,2]
[313685179,1707582638501,-1000.0,0.00020701,2]
[313685180,1707582638511,-1000.0,0.00020701,2]
[313685181,1707582638520,-193.30006974,0.00020701,2]
[313685182,1707582638530,-1000.0,0.00020701,2]
[313685183,1707582638540,-1000.0,0.00020701,2]
[313685184,1707582638549,-1000.0,0.00020701,2]
[313685185,1707582638558,-350.0090115,0.00020701,2]
[313685186,1707582638567,-1000.0,0.00020701,2]
[313685187,1707582638576,-1000.0,0.00020701,2]
[313685188,1707582638585,-1000.0,0.00020701,2]
[313685189,1707582638594,-1000.0,0.00020701,2]
[313685190,1707582638603,-349.09588983,0.00020701,2]
[313685191,1707582638612,-1000.0,0.00020701,2]
[313685192,1707582638621,-455.63287712,0.00020701,2]
[313685193,1707582638630,-1000.0,0.00020701,2]
[313685194,1707582638639,-1000.0,0.00020701,2]
[313685195,1707582638649,-1000.0,0.00020701,2]
[313685196,1707582638659,-1000.0,0.00020701,2]
[313685197,1707582638669,-1000.0,0.00020701,2]
[313685198,1707582638679,-29949.70948754,0.00020701,2]
[313685199,1707582638694,-953.79146371,0.00020701,2]
[313685200,1707582638874,-3687.10330773,0.00020701,2]
[313685201,1707582638883,-1000.0,0.00020701,2]
[313685202,1707582638892,-1000.0,0.00020701,2]
[313685203,1707582638901,-1000.0,0.00020701,2]
[313685204,1707582638911,-1000.0,0.00020701,2]
[313685205,1707582638921,-2106.58381797,0.00020814,2]
[313685206,1707582638930,-5000.0,0.00020814,2]
[313685207,1707582638939,-5000.0,0.00020814,2]
[313685208,1707582638948,-481.33803628,0.00020814,2]
[313685209,1707582638959,-5000.0,0.00020814,2]
[313685210,1707582638969,-2500.0,0.00021,2]
[313685211,1707582638979,-151.0,0.00021006,2]
[313685212,1707582638988,-151.0,0.0002156,2]
[313685213,1707582638997,-882.51713389,0.00021913,2]
[313685214,1707582639007,-11549.31520876,0.00021914,2]
[313685215,1707582639016,-205.42475206,0.00021914,2]
[313685216,1707582639025,-155.53545964,0.00021914,2]
[313685217,1707582639034,-483.33250431,0.00021917,5]
[313685218,1707582639044,-329.48832714,0.00021917,2]
[313685219,1707582639054,-166.666666,0.00021918,2]
[313685220,1707582639062,-167.04025921,0.00021999,2]
[313685221,1707582639072,-326.61559364,0.00022,2]
[313685222,1707582639082,-155.9815372,0.00022,2]
[313685223,1707582639091,-427.31508471,0.00022,2]
[313685224,1707582639099,-1500.0,0.00022,2]
[313685225,1707582639198,-1500.0,0.00022,2]
[313685226,1707582639207,-1500.0,0.00022,2]
[313685227,1707582639216,-1500.0,0.00022,2]
[313685228,1707582639225,-1500.0,0.00022,2]
[313685229,1707582639235,-1500.0,0.00022,2]
[313685230,1707582639245,-1500.0,0.00022,2]
[313685231,1707582639253,-1500.0,0.00022,2]
[313685232,1707582639262,-1500.0,0.00022,2]
[313685233,1707582639271,-1500.0,0.00022,2]
[313685234,1707582639280,-1500.0,0.00022,2]
[313685235,1707582639289,-1500.0,0.00022,2]
[313685236,1707582639298,-1500.0,0.00022,2]
[313685237,1707582639308,-1500.0,0.00022,2]
[313685238,1707582639317,-361.4575131,0.00022,2]
[313685239,1707582639331,-1138.5424869,0.00022,2]
[313685240,1707582639343,-598.29,0.00022,2]
[313685241,1707582639353,-1500.0,0.00022,2]
[313685242,1707582639362,-253.63765532,0.00022,2]
[313685243,1707582639374,-1246.36234468,0.00022,2]
[313685244,1707582639384,-1500.0,0.00022,2]
[313685245,1707582639393,-1500.0,0.00022,2]
[313685246,1707582639403,-317.9694948,0.00022,2]
[313685270,1707582641001,-1000.0,0.00020701,2]
[313685272,1707582641010,-332.84203042,0.00022,2]
[313685274,1707582641124,-849.18847478,0.00022,2]
[313685275,1707582641133,-1500.0,0.00022,2]
[313685276,1707582641142,-2000.0,0.00022,5]
[313685277,1707582641151,-483.99330618,0.00022,2]
[313685278,1707582641160,-151.0,0.00022114,2]
[313685279,1707582641169,-200.0,0.00022327,7]
[313685280,1707582641179,-360.0,0.00022327,7]
[313685281,1707582641188,-166.666666,0.00022431,2]
[313685282,1707582641196,-300.35667395,0.00022463,2]
[313685283,1707582641205,-164.93141315,0.00022465,2]
[313685284,1707582641214,-169.36411579,0.000225,2]
[313685285,1707582641223,-500.0,0.00022575,2]
[313685286,1707582641231,-500.0,0.00022622,2]
[313685287,1707582641240,-299.46275024,0.00022622,2]
[313685288,1707582641248,-500.0,0.00022622,2]
[313685289,1707582641257,-500.0,0.00022622,2]
[313685291,1707582641266,-296.96736493,0.00022622,2]
[313685293,1707582641275,-500.0,0.00022622,2]
[313685295,1707582641284,-278.32209321,0.00022622,2]
[313685297,1707582641293,-342.69190737,0.00022622,2]
[313685298,1707582641302,-500.0,0.00022622,2]
[313685300,1707582641311,-250.48600051,0.00022622,2]
[313685303,1707582641325,-249.51399949,0.00022622,2]
[313685305,1707582641336,-500.0,0.00022622,2]
[313685307,1707582641345,-500.0,0.00022622,2]
[313685308,1707582641354,-500.0,0.00022622,2]
[313685310,1707582641364,-500.0,0.00022622,2]
[313685311,1707582641373,-38042.64654485,0.00022623,2]
[313685312,1707582641386,-7542.88961681,0.00022623,2]
[313685313,1707582641400,-4414.46383834,0.00022623,2]
[313685314,1707582641410,-151.0,0.00022667,2]
[313685315,1707582641418,-500.0,0.00022684,2]
[313685316,1707582641429,-500.0,0.00022794,2]
[313685317,1707582641438,-500.0,0.00022904,2]
[313685319,1707582641447,-166.666666,0.00022944,2]
[313685320,1707582641456,-6433.12255516,0.00023,2]
[313685321,1707582641467,-1891.94052634,0.00023,2]
[313685335,1707582642796,-1648.18596509,0.00023,2]
[313685336,1707582642806,-1022.23550988,0.00023,5]
[313685337,1707582642817,-161.13580356,0.00023,5]
[313685338,1707582642826,-338.86419644,0.00023,2]
[313685372,1707582645889,-1000.0,0.00020701,2]
[313685373,1707582645899,-924.9696539,0.00023,2]
[313685374,1707582645909,-500.0,0.00023013,2]
[313685376,1707582645918,-237.61210868,0.00023123,2]
[313685377,1707582645928,-151.0,0.00023221,2]
[313685378,1707582645938,-166.666666,0.00023456,2]
[313685379,1707582645947,-151.0,0.00023775,2]
[313685380,1707582645957,-1050.80427446,0.000239,2]
[313685382,1707582645966,-166.666666,0.00023969,2]
[313685383,1707582645975,-4041.63927082,0.00024,2]
[313685384,1707582645985,-483.99330618,0.000241,2]
[313685386,1707582645993,-151.0,0.00024329,2]
[313685387,1707582646003,-2535.94618874,0.000244,3]
[313685388,1707582646015,-1514.00557674,0.000244,3]
[313685389,1707582646024,-504.45809151,0.0002447,5]
[313685390,1707582646034,-166.666666,0.00024482,2]
[313685391,1707582646043,-1000.0,0.000245,2]
[313685392,1707582646052,-200.0,0.00024559,7]
[313685393,1707582646061,-200.0,0.00024559,7]
[313685394,1707582646071,-382.0,0.00024559,7]
[313685395,1707582646080,-300.60712175,0.00024658,2]
[313685404,1707582672506,150.0,0.00029,30]
[313685407,1707582788087,261.80347615,0.00016909,7]
[313685408,1707582804208,379.00530314,0.00016908,7]
[313685409,1707582808085,-154.8915759,0.00016908,2]
[313685410,1707582808107,-651.85853467,0.00016909,2]
[313685411,1707582808128,-607.67326012,0.0001691,2]
[313685412,1707582808150,-18585.57662931,0.0001691,2]
[313685413,1707582862401,250.0,0.00015907,2]
[313685414,1707582908838,24900.0,0.00015782,2]
[313685421,1707582925320,155.27910098,0.00015907,2]
[313685423,1707582943200,156.05603969,0.00015907,2]
[313685424,1707582944678,154.8915759,0.00015907,2]
[313685425,1707582946301,622.36860432,0.00015907,2]
[313685426,1707582950019,10462.83887223,0.00015907,2]
[313685432,1707582956401,1485.1533176,0.00015771,2]
[313685433,1707582962674,157.31353638,0.00015907,2]
[313685455,1707583120088,248.3851242,0.00016137,2]
[313685457,1707583122550,6407.7138287,0.00015759,2]
[313685458,1707583122587,19284.4274596,0.00015759,2]
[313685461,1707583135191,864.744513,0.00015804,2]
[313685473,1707583174380,848.6631808,0.0001575,2]
[313685486,1707583302525,3000.0,0.0001578,2]
[313685487,1707583326521,721.8074712,0.00015783,2]
[313685491,1707583406681,250.0,0.00015729,2]
[313685507,1707583485610,24900.0,0.00015776,2]
[313685515,1707583569935,7875.046286,0.00015773,2]
[313685524,1707583631091,-763.88031577,0.00016703,2]
[313685525,1707583631112,-783.74050421,0.00016703,2]
[313685527,1707583639167,603.153882,0.00015709,2]
[313685529,1707583649238,484.15245738,0.00015033,2]
[313685533,1707583746099,-1018.7537034,0.00016594,2]
[313685534,1707583746120,-563.40891521,0.00016594,2]
[313685535,1707583746141,-1434.56222192,0.00016594,2]
[313685536,1707583746161,-154.8915759,0.00016594,2]
[313685537,1707583746182,-323.90420148,0.00016595,2]
[313685538,1707583746202,-154.8915759,0.00016595,2]
[313685539,1707583746222,-3332.01897301,0.00016595,2]
[313685540,1707583746241,-2341.74539754,0.00016596,2]
[313685541,1707583746261,-525.23486531,0.00016597,2]
[313685542,1707583746282,-161.5844476,0.00016597,2]
[313685543,1707583746303,-295.90443276,0.00016597,2]
[313685544,1707583746323,-163.83177483,0.00016598,2]
[313685545,1707583746344,-163.83177483,0.00016651,2]
[313685546,1707583746366,-20966.36090034,0.00016693,2]
[313685547,1707583746386,-172.15154598,0.00016693,2]
[313685548,1707583746407,-18964.89870394,0.00016694,2]
[313685549,1707583746427,-13441.51341427,0.00016694,2]
[313685550,1707583747111,4257.8834926,0.00015646,2]
[313685551,1707583747795,1031.2971,0.00015646,2]
[313685553,1707583751095,-5703.89366954,0.00016694,2]
[313685554,1707583751115,-5000.0,0.00016695,2]
[313685555,1707583751136,-1587.53818011,0.00016696,2]
[313685556,1707583751157,-155.07753877,0.00016697,2]
[313685557,1707583751176,-296.28297321,0.00016697,2]
[313685558,1707583751197,-155.66439101,0.00016697,2]
[313685559,1707583751216,-569.52019291,0.00016697,2]
[313685560,1707583751236,-154.90705577,0.00016697,2]
[313685561,1707583751255,-154.90705577,0.00016697,2]
[313685562,1707583751275,-214.08706983,0.00016697,2]
[313685563,1707583751294,-1961.40823934,0.00016697,2]
[313685564,1707583751313,-678.94138998,0.00016697,2]
[313685565,1707583751333,-405.62871077,0.00016697,2]